bitfinex-derivatives/quotes_BTCF0:USTF0_20250213
["timestamp","ask_amount","ask_price","bid_price","bid_amount"]
[1739465270243,0.059,95507.0,95506.0,0.003]
[1739465270543,0.36240001,95508.0,95506.0,0.003]
[1739465270741,0.5711777,95508.0,95506.0,0.003]
[1739465271848,0.2113777,95508.0,95506.0,0.003]
[1739465272046,0.001,95507.0,95506.0,0.003]
[1739465272346,0.07748,95507.0,95506.0,0.003]
[1739465272644,0.07748,95507.0,95506.0,0.001]
[1739465272843,0.002,95508.0,95507.0,0.2093782]
[1739465273445,0.00157091,95514.0,95507.0,0.0548]
[1739465273748,0.2093213,95533.0,95529.0,0.2093289]
[1739465274245,0.12632032,95540.0,95514.0,0.0523404]
[1739465274548,0.12632032,95530.0,95513.0,0.3608]
[1739465274848,0.12632032,95530.0,95519.0,0.2093511]
[1739465275049,0.2093424,95524.0,95523.0,0.2093429]
[1739465275441,0.2093285,95530.0,95528.0,0.2093319]
[1739465275845,0.001,95530.0,95513.0,0.3638]
[1739465276045,0.002,95530.0,95529.0,0.2093299]
[1739465277237,0.2113277,95530.0,95528.0,0.003]
[1739465277653,0.2103277,95530.0,95528.0,0.003]
[1739465277846,0.2103277,95530.0,95528.0,0.006]
[1739465278438,0.2103277,95530.0,95529.0,0.003]
[1739465279042,0.2093277,95530.0,95528.0,0.2123316]
[1739465279252,0.00015709,95531.0,95530.0,0.2093277]
[1739465280152,0.00015709,95531.0,95528.0,0.006]
[1739465280343,0.2093277,95530.0,95528.0,0.006]
[1739465280539,0.001,95530.0,95529.0,0.003]
[1739465280848,0.00015709,95531.0,95529.0,0.2153299]
[1739465281157,0.00015709,95531.0,95530.0,0.059]
[1739465281158,1e-08,95531.0,95530.0,0.059]
[1739465281851,0.20932551,95531.0,95530.0,0.2683277]
[1739465282039,0.21132551,95531.0,95530.0,0.2683277]
[1739465282542,0.21032551,95531.0,95530.0,0.059]
[1739465282750,0.20932551,95531.0,95530.0,0.062]
[1739465282942,0.21032551,95531.0,95530.0,0.069]
[1739465283149,0.21032551,95531.0,95530.0,0.01]
[1739465283547,0.20932551,95531.0,95530.0,0.003]
[1739465283752,0.21032551,95531.0,95530.0,0.009]
[1739465284755,0.21032551,95531.0,95530.0,0.2183277]
[1739465284947,0.21032551,95531.0,95530.0,0.009]
[1739465287455,0.209365,95513.0,95512.0,0.00015709]
[1739465287659,0.570165,95513.0,95512.0,0.00015709]
[1739465288048,0.2093694,95511.0,95495.0,0.1138]
[1739465288355,0.21988115,95511.0,95495.0,0.1138]
[1739465288558,0.2094022,95497.0,95495.0,0.1138]
[1739465288757,0.2094023,95496.0,95495.0,0.1138]
[1739465289059,0.12632032,95510.0,95495.0,0.1138]
[1739465289254,0.2093876,95503.0,95500.0,0.2093927]
[1739465289461,0.00015709,95505.0,95500.0,0.2093927]
[1739465289651,0.00015709,95505.0,95504.0,0.2093847]
[1739465290557,0.09644347,95509.0,95508.0,0.2093759]
[1739465290757,0.34085625,95523.0,95504.0,0.0105385]
[1739465290947,0.209352,95519.0,95517.0,0.2093561]
[1739465291151,0.34085625,95523.0,95514.0,0.3608]
[1739465291350,0.55019935,95523.0,95522.0,0.2093453]
[1739465292363,0.2093506,95520.0,95517.0,0.2093559]
[1739465292572,0.209354,95518.0,95517.0,0.2093559]
[1739465292859,0.2093628,95514.0,95513.0,0.00015709]
[1739465293258,0.2093628,95514.0,95513.0,0.20952209]
[1739465293564,0.2093474,95522.0,95520.0,0.2093488]
[1739465293756,0.209354,95518.0,95517.0,0.004]
[1739465294158,0.36240001,95523.0,95521.0,0.2093472]
[1739465294355,0.3608,95523.0,95521.0,0.2093472]
[1739465294760,0.570144,95523.0,95521.0,0.2093472]
[1739465295257,0.2093453,95522.0,95521.0,0.2093472]
[1739465295858,0.2093453,95522.0,95521.0,0.2133472]
[1739465296464,0.36240001,95523.0,95522.0,0.2093452]
[1739465296664,0.3608,95523.0,95522.0,0.2093452]
[1739465297167,0.3618,95523.0,95522.0,0.2093452]
[1739465297568,0.3608,95523.0,95522.0,0.2093452]
[1739465297768,0.001,95523.0,95522.0,0.5731452]
[1739465298875,0.002,95523.0,95522.0,0.5771452]
[1739465300065,0.002,95523.0,95522.0,0.58795438]
[1739465300470,0.002,95523.0,95522.0,0.5771452]
[1739465301472,0.002,95523.0,95522.0,0.8771452]
[1739465301873,0.002,95523.0,95522.0,0.88795866]
[1739465302266,0.002,95523.0,95522.0,0.58795866]
[1739465303771,0.00015709,95532.0,95531.0,0.2093255]
[1739465304066,0.00015709,95532.0,95531.0,0.5701255]
[1739465305070,0.00115709,95532.0,95531.0,0.5741255]
[1739465306277,0.21048039,95532.0,95531.0,0.5771255]
[1739465306683,0.00115709,95532.0,95531.0,0.5771255]
[1739465307175,0.108,95559.0,95540.0,0.0523264]
[1739465307477,0.108,95559.0,95558.0,0.2092664]
[1739465307673,0.3172642,95559.0,95558.0,0.2092664]
[1739465307977,0.2629642,95559.0,95558.0,0.2092664]
[1739465308174,0.01050937,95559.0,95558.0,0.2092664]
[1739465308376,0.2636599,95561.0,95559.0,0.2092642]
[1739465308576,0.0544,95561.0,95559.0,0.2092642]
[1739465308775,0.2092474,95567.0,95559.0,0.2092642]
[1739465309276,0.2092525,95565.0,95559.0,0.2092642]
[1739465309480,0.000157,95568.0,95551.0,0.3608]
[1739465309675,0.000157,95568.0,95567.0,0.2092467]
[1739465311281,0.000157,95568.0,95567.0,0.2122467]
[1739465311483,0.000157,95568.0,95567.0,0.2230757]
[1739465311778,0.000157,95568.0,95567.0,0.2122467]
[1739465311978,0.000157,95568.0,95567.0,0.2172467]
[1739465312579,0.000157,95568.0,95567.0,0.2142467]
[1739465312776,0.000157,95568.0,95567.0,0.2172467]
[1739465313374,0.000157,95568.0,95567.0,0.2142467]
[1739465313584,0.000157,95568.0,95567.0,0.2172467]
[1739465315283,0.0578,95589.0,95588.0,0.2092007]
[1739465316479,0.0578,95589.0,95582.0,0.2092118]
[1739465316686,0.2092182,95580.0,95579.0,0.361597]
[1739465316880,0.2092182,95580.0,95579.0,0.360957]
[1739465317280,0.0608,95589.0,95588.0,0.2092007]
[1739465318682,0.006,95589.0,95588.0,0.5700007]
[1739465319390,0.003,95589.0,95588.0,0.5700007]
[1739465319885,0.006,95589.0,95588.0,0.5700007]
[1739465320274,0.000157,95598.0,95588.0,0.3608]
[1739465320474,0.000157,95598.0,95597.0,0.5699811]
[1739465321085,1e-07,95598.0,95597.0,0.5699811]
[1739465321383,0.3608,95624.0,95597.0,0.3608]
[1739465321584,0.0589,95623.0,95614.0,0.2091439]
[1739465321787,0.0589,95623.0,95622.0,0.2091264]
[1739465322186,0.2680242,95623.0,95622.0,0.2091264]
[1739465322585,0.2091439,95614.0,95613.0,0.00015692]
[1739465323195,0.2629439,95614.0,95613.0,0.00015692]
[1739465323788,0.0538,95614.0,95612.0,0.36136]
[1739465323988,0.0538,95614.0,95612.0,0.5699479]
[1739465324395,0.0538,95614.0,95612.0,0.3608]
[1739465324595,0.0538,95614.0,95613.0,0.2091461]
[1739465324891,0.0538,95614.0,95613.0,0.2151461]
[1739465325394,0.0538,95614.0,95613.0,0.2091461]
[1739465325786,0.3608,95651.0,95615.0,0.01]
[1739465326091,0.01059333,95639.0,95638.0,0.2090916]
[1739465326287,0.01059333,95639.0,95638.0,0.51231842]
[1739465326489,0.209072,95647.0,95646.0,0.209074]
[1739465326689,0.209072,95647.0,95646.0,0.3608]
[1739465326987,0.00156904,95650.0,95646.0,0.3608]
[1739465327183,0.2090835,95642.0,95638.0,0.5698913]
[1739465327391,0.21981125,95642.0,95639.0,0.2090884]
[1739465327796,0.2090871,95640.0,95639.0,0.2090884]
[1739465328103,0.2090788,95644.0,95643.0,0.2090782]
[1739465328305,0.01080973,95644.0,95638.0,0.3608]
[1739465328499,0.2090893,95639.0,95638.0,0.5698893]
[1739465329097,0.2090774,95645.0,95644.0,0.2090761]
[1739465329304,0.001,95644.0,95643.0,0.2090805]
[1739465331010,0.0539,95646.0,95645.0,0.2090761]
[1739465331503,0.2090827,95642.0,95641.0,0.3608]
[1739465331705,0.0539,95646.0,95641.0,0.3608]
[1739465332011,0.0539,95646.0,95645.0,0.2090761]
[1739465332703,0.0559,95646.0,95645.0,0.2090761]
[1739465332911,0.264974,95646.0,95645.0,0.2090761]
[1739465333603,0.2090827,95642.0,95641.0,0.3608]
[1739465334202,0.2090827,95642.0,95641.0,0.5698849]
[1739465334912,0.0559,95646.0,95641.0,0.3608]
[1739465335106,0.0559,95646.0,95645.0,0.2090761]
[1739465335309,0.264974,95646.0,95645.0,0.2090761]
[1739465335618,0.262974,95646.0,95645.0,0.2090761]
[1739465336007,0.00156904,95650.0,95641.0,0.3608]
[1739465336208,0.00156904,95650.0,95649.0,0.5698674]
[1739465336409,0.00156904,95650.0,95649.0,0.5798674]
[1739465337415,0.21063424,95650.0,95649.0,0.5798674]
[1739465337820,0.21363424,95650.0,95649.0,0.5798674]
[1739465338711,0.21763424,95650.0,95649.0,0.5798674]
[1739465339113,0.00856904,95650.0,95649.0,0.5798674]
[1739465339622,0.00856904,95650.0,95649.0,0.59033309]
[1739465341119,0.007,95650.0,95649.0,0.59033309]
[1739465341417,0.00015663,95656.0,95655.0,0.2090543]
[1739465341614,0.00015663,95656.0,95655.0,0.5698543]
[1739465341816,0.2089969,95683.0,95682.0,0.2089908]
[1739465342111,0.21944616,95688.0,95682.0,0.3608]
[1739465342317,0.21944616,95688.0,95687.0,0.2089844]
[1739465342514,0.0567,95699.0,95682.0,0.3608]
[1739465342707,0.2089931,95683.0,95682.0,0.3608]
[1739465344022,0.2109931,95683.0,95682.0,0.3618]
[1739465344227,0.2109931,95683.0,95682.0,0.001]
[1739465344420,0.2089953,95682.0,95681.0,0.00015683]
[1739465344622,0.2620953,95682.0,95681.0,0.00015683]
[1739465345416,0.2090281,95667.0,95666.0,0.3608]
[1739465346315,0.21957888,95667.0,95666.0,0.3608]
[1739465347416,0.22057888,95667.0,95666.0,0.3608]
[1739465347618,0.2090477,95658.0,95657.0,0.00015683]
[1739465348217,0.0573,95666.0,95658.0,0.2090477]
[1739465348409,0.2090423,95661.0,95658.0,0.2090477]
[1739465348816,0.0573,95666.0,95658.0,0.2090477]
[1739465349018,0.0573,95666.0,95665.0,0.3608]
[1739465349218,0.2663303,95666.0,95665.0,0.3608]
[1739465350022,0.2663303,95666.0,95665.0,0.28885301]
[1739465350225,0.5663303,95666.0,95665.0,0.28885301]
[1739465350624,0.5673303,95666.0,95665.0,0.28885301]
[1739465350820,0.2673303,95666.0,95665.0,0.28885301]
[1739465351326,0.2090477,95658.0,95657.0,0.36095683]
[1739465353234,0.209074,95646.0,95642.0,0.01]
[1739465354722,0.209074,95646.0,95645.0,0.00356821]
[1739465355520,0.209074,95646.0,95645.0,0.00456821]
[1739465356727,0.209074,95646.0,95645.0,0.21364441]
[1739465357633,0.00015683,95655.0,95645.0,0.00456821]
[1739465357930,0.18911339,95670.0,95645.0,0.00456821]
[1739465357931,0.2090456,95659.0,95658.0,0.2090471]
[1739465358429,0.18911339,95668.0,95659.0,0.2090452]
[1739465358732,0.1998396,95668.0,95659.0,0.2090452]
[1739465358929,0.1998396,95668.0,95654.0,0.0554]
[1739465359127,0.2090335,95665.0,95664.0,0.2090303]
[1739465359430,0.2090347,95664.0,95663.0,0.5698358]
[1739465359623,0.2090336,95666.0,95665.0,0.2090318]
[1739465360225,0.2090347,95664.0,95663.0,0.3608]
[1739465360531,0.2100347,95664.0,95663.0,0.3608]
[1739465361124,0.001,95664.0,95663.0,0.5698369]
[1739465361327,0.003,95665.0,95664.0,0.2090347]
[1739465361727,0.003,95665.0,95664.0,0.2668347]
[1739465361921,0.09629162,95666.0,95664.0,0.2668347]
[1739465362124,0.09629162,95666.0,95665.0,0.2090325]
[1739465362125,0.09929162,95666.0,95665.0,0.2090325]
[1739465362624,0.09629162,95666.0,95665.0,0.2090325]
[1739465363233,0.09729162,95666.0,95665.0,0.2090325]
[1739465363635,0.09829162,95666.0,95665.0,0.2090325]
[1739465364528,0.002,95666.0,95665.0,0.2090325]
[1739465365128,0.002,95666.0,95665.0,0.2190325]
[1739465365328,0.00084317,95666.0,95665.0,0.2190325]
[1739465365932,0.00015683,95673.0,95672.0,0.2090172]
[1739465366131,0.43815506,95683.0,95682.0,0.2089954]
[1739465366132,0.31115506,95683.0,95682.0,0.2089954]
[1739465366335,0.31115506,95683.0,95682.0,0.5697954]
[1739465366730,0.31115506,95683.0,95682.0,0.3608]
[1739465366935,0.31115506,95683.0,95682.0,0.5697954]
[1739465368137,0.04835506,95685.0,95684.0,0.208991]
[1739465369535,0.04935506,95685.0,95684.0,0.208991]
[1739465370237,0.05135506,95685.0,95684.0,0.208991]
[1739465371133,0.003,95685.0,95684.0,0.208991]
[1739465374739,0.2119888,95685.0,95684.0,0.208991]
[1739465375245,0.003,95685.0,95684.0,0.208991]
[1739465375746,0.2119888,95685.0,95684.0,0.208991]
[1739465376839,0.208991,95684.0,95683.0,0.1102]
[1739465377138,0.208991,95684.0,95682.0,0.36136]
[1739465377349,0.208991,95684.0,95682.0,0.3608]
[1739465378339,0.22198678,95684.0,95682.0,0.3608]
[1739465378544,0.22398678,95684.0,95682.0,0.3608]
[1739465379051,0.22598678,95684.0,95682.0,0.3608]
[1739465379251,0.22398678,95684.0,95682.0,0.3608]
[1739465379550,0.22498678,95684.0,95682.0,0.3608]
[1739465380646,0.09625333,95683.0,95682.0,0.3608]
[1739465382256,0.09925333,95683.0,95682.0,0.3608]
[1739465383149,0.09725333,95683.0,95682.0,0.28886564]
[1739465383349,0.2090085,95676.0,95675.0,0.00015683]
[1739465383657,0.2090085,95676.0,95675.0,0.00010192]
[1739465383844,0.3608,95676.0,95663.0,0.3608]
[1739465384050,0.2090347,95664.0,95663.0,0.3608]
[1739465384649,0.209063,95651.0,95650.0,0.3608]
[1739465385752,0.22255906,95651.0,95650.0,0.3608]
[1739465386154,0.22255906,95651.0,95650.0,0.3698]
[1739465387350,0.22255906,95651.0,95650.0,0.009]
[1739465391263,0.31886992,95651.0,95650.0,0.009]
[1739465391855,0.2090827,95642.0,95641.0,0.00015683]
[1739465392265,0.2091155,95627.0,95624.0,0.01]
[1739465392866,0.01338991,95629.0,95628.0,0.2091133]
[1739465393163,0.2091013,95634.0,95631.0,0.2091065]
[1739465393663,0.00015683,95642.0,95628.0,0.3608]
[1739465393855,0.20923953,95642.0,95641.0,0.3608]
[1739465394055,0.28531953,95642.0,95641.0,0.3608]
[1739465394361,0.28531953,95642.0,95633.0,0.3608]
[1739465394362,0.2091002,95634.0,95633.0,0.3608]
[1739465394564,0.3608,95638.0,95628.0,0.2091124]
[1739465395158,0.3608,95638.0,95626.0,0.00856868]
[1739465395666,0.2101002,95634.0,95633.0,0.007]
[1739465396266,0.001,95634.0,95633.0,0.2161024]
[1739465396760,0.002,95634.0,95633.0,0.2231024]
[1739465396965,0.2111002,95634.0,95633.0,0.014]
[1739465397265,0.2101002,95634.0,95633.0,0.007]
[1739465397958,0.2111002,95634.0,95633.0,0.014]
[1739465398263,0.001,95634.0,95633.0,0.014]
[1739465399465,0.2101002,95634.0,95633.0,0.014]
[1739465400356,0.2101002,95634.0,95623.0,0.36095683]
[1739465400357,0.0587,95634.0,95623.0,0.00015683]
[1739465400561,0.569922,95624.0,95623.0,0.00015683]
[1739465401058,0.2091767,95599.0,95598.0,0.3608]
[1739465402166,0.2101767,95599.0,95598.0,0.3678]
[1739465402368,0.2101767,95599.0,95598.0,0.3748]
[1739465402767,0.2091767,95599.0,95598.0,0.3678]
[1739465402962,0.001,95599.0,95598.0,0.3748]
[1739465403171,0.001,95599.0,95598.0,0.5819789]
[1739465404357,0.00015683,95608.0,95607.0,0.01]
[1739465404566,0.01300859,95630.0,95617.0,0.01]
[1739465404766,0.01300859,95630.0,95627.0,0.3608]
[1739465404968,0.2091133,95628.0,95627.0,0.3608]
[1739465405175,0.11257966,95634.0,95628.0,0.2091133]
[1739465406168,0.01306447,95632.0,95628.0,0.2091133]
[1739465406471,0.11257966,95634.0,95628.0,0.2091133]
[1739465406967,0.01307112,95634.0,95628.0,0.2091133]
[1739465407273,0.209103,95633.0,95628.0,0.2091133]
[1739465407671,0.2091051,95632.0,95628.0,0.2643133]
[1739465407867,0.2091098,95630.0,95628.0,0.0552]
[1739465408768,0.2091098,95630.0,95628.0,0.001]
[1739465409273,0.01307112,95634.0,95622.0,0.3608]
[1739465409274,0.2091242,95623.0,95622.0,0.3608]
[1739465410074,0.00356896,95629.0,95619.0,0.00015683]
[1739465410376,0.2091307,95620.0,95619.0,0.00015683]
[1739465411775,0.002,95623.0,95619.0,0.00015683]
[1739465411965,0.001,95620.0,95619.0,0.20928973]
[1739465412370,0.002,95620.0,95619.0,0.20928973]
[1739465413073,0.002,95620.0,95619.0,0.21428973]
[1739465414067,0.001,95620.0,95619.0,0.21928973]
[1739465414673,0.00015683,95638.0,95619.0,0.00715683]
[1739465414863,0.00015683,95638.0,95633.0,0.2091001]
[1739465415063,0.00015683,95638.0,95634.0,0.00044317]
[1739465415468,0.3608,95637.0,95634.0,0.00044317]
[1739465415865,0.00015683,95638.0,95634.0,0.00044317]
[1739465416265,0.2090967,95636.0,95634.0,0.00044317]
[1739465416770,0.00215683,95638.0,95637.0,0.2090936]
[1739465417469,0.00415683,95638.0,95637.0,0.2090936]
[1739465417975,0.00215683,95638.0,95637.0,0.2090936]
[1739465418173,0.00315683,95638.0,95637.0,0.2090936]
[1739465418564,0.20924883,95638.0,95636.0,0.1124]
[1739465418765,0.20924883,95638.0,95637.0,0.001]
[1739465419673,0.00015683,95638.0,95637.0,0.005]
[1739465420673,0.00015683,95638.0,95637.0,0.004]
[1739465420878,0.00015683,95638.0,95637.0,0.006]
[1739465421263,0.00015683,95638.0,95637.0,0.002]
[1739465421463,0.00015683,95638.0,95637.0,0.003]
[1739465421663,0.09631135,95648.0,95647.0,0.2190717]
[1739465421868,0.09631135,95648.0,95647.0,0.5798717]
[1739465422273,0.01304363,95656.0,95647.0,0.3708]
[1739465422476,0.2090415,95661.0,95655.0,0.3608]
[1739465422772,0.01339749,95659.0,95658.0,0.2090474]
[1739465422977,0.209031,95666.0,95658.0,0.2090474]
[1739465423273,0.00015683,95667.0,95659.0,0.3608]
[1739465423475,0.00015683,95667.0,95659.0,0.4706]
[1739465424277,0.00015683,95667.0,95666.0,0.2090302]
[1739465425870,0.00215683,95667.0,95666.0,0.2090302]
[1739465426880,0.00215683,95667.0,95666.0,0.22243434]
[1739465427078,0.00215683,95667.0,95666.0,0.2090302]
[1739465428079,0.01660553,95667.0,95666.0,0.2090302]
[1739465428271,0.00415683,95667.0,95666.0,0.2090302]
[1739465432283,0.00156817,95687.0,95686.0,0.2089865]
[1739465432577,0.00156817,95687.0,95686.0,0.5697865]
[1739465433686,0.01404421,95687.0,95686.0,0.2089865]
[1739465433888,0.00156817,95687.0,95686.0,0.5697865]
[1739465434585,0.00556817,95687.0,95686.0,0.5697865]
[1739465434787,0.00956817,95687.0,95686.0,0.5697865]
[1739465437083,0.02258345,95687.0,95686.0,0.5697865]
[1739465437281,0.02258345,95687.0,95686.0,0.3608]
[1739465438077,0.23156775,95687.0,95686.0,0.3608]
[1739465440483,0.2089953,95682.0,95681.0,0.3614]
[1739465440681,0.2089953,95682.0,95681.0,0.3608]
[1739465440889,0.209004,95678.0,95677.0,0.00015683]
[1739465441191,0.209004,95678.0,95677.0,0.00011417]
[1739465443480,0.210004,95678.0,95677.0,0.00011417]
[1739465443892,0.209004,95678.0,95677.0,0.00011417]
[1739465444083,0.210004,95678.0,95677.0,0.00011417]
[1739465445091,0.001,95678.0,95677.0,0.20912037]
[1739465446386,0.0545,95680.0,95679.0,0.2090018]
[1739465448993,0.0575,95680.0,95679.0,0.2090018]
[1739465450786,0.0575,95680.0,95677.0,0.00011417]
[1739465450989,0.2090018,95679.0,95677.0,0.00011417]
[1739465451292,0.0575,95680.0,95677.0,0.01011417]
[1739465451491,0.0575,95680.0,95679.0,0.2090018]
[1739465451694,0.003,95680.0,95679.0,0.2090018]
[1739465452691,0.001,95680.0,95679.0,0.2090018]
[1739465453301,0.002,95680.0,95679.0,0.2090018]
[1739465453493,0.002,95680.0,95679.0,0.2618018]
[1739465454094,0.002,95680.0,95679.0,0.27457387]
[1739465454297,0.003,95680.0,95679.0,0.27457387]
[1739465455597,0.00161083,95687.0,95679.0,0.06557207]
[1739465455807,4.266e-05,95687.0,95686.0,0.5697865]
[1739465456694,0.00104266,95687.0,95686.0,0.5697865]
[1739465456896,0.00504266,95687.0,95686.0,0.5697865]
[1739465457396,0.00404266,95687.0,95686.0,0.5697865]
[1739465457593,0.00804266,95687.0,95686.0,0.5697865]
[1739465458892,0.00804266,95687.0,95686.0,0.49787448]
[1739465459590,0.53050992,95697.0,95686.0,0.28888798]
[1739465459901,0.52990991,95697.0,95696.0,0.5697646]
[1739465460703,0.52990991,95697.0,95696.0,0.5797646]
[1739465461001,0.53290991,95697.0,95696.0,0.5797646]
[1739465461193,0.53990991,95697.0,95696.0,0.5807646]
[1739465461396,0.53690991,95697.0,95696.0,0.5807646]
[1739465461595,0.54390991,95697.0,95696.0,0.5817646]
[1739465462196,0.54390991,95697.0,95696.0,0.012]
[1739465462393,0.2089827,95688.0,95686.0,0.28888798]
[1739465462597,0.0642,95687.0,95686.0,0.28888798]
[1739465462799,0.33494671,95697.0,95696.0,0.2089646]
[1739465462993,0.31884501,95697.0,95696.0,0.5697646]
[1739465463297,0.03449531,95697.0,95696.0,0.5697646]
[1739465463504,1e-08,95700.0,95699.0,0.2089581]
[1739465463703,1e-08,95700.0,95699.0,0.5697581]
[1739465463912,1e-08,95700.0,95699.0,0.8697581]
[1739465464202,1e-08,95700.0,95699.0,0.5697581]
[1739465464401,1e-08,95700.0,95699.0,0.89234902]
[1739465464904,0.00200001,95700.0,95699.0,0.89234902]
[1739465465103,0.11247904,95705.0,95699.0,0.89234902]
[1739465465104,0.11247904,95705.0,95704.0,0.2089471]
[1739465467896,0.2088993,95726.0,95718.0,0.2089145]
[1739465468106,0.2088993,95726.0,95725.0,0.3608]
[1739465468993,0.2088993,95726.0,95722.0,0.01]
[1739465469194,0.2088993,95726.0,95725.0,0.3608]
[1739465469605,0.2089057,95723.0,95722.0,0.01]
[1739465469907,0.2089144,95719.0,95718.0,0.001]
[1739465470103,0.2089275,95713.0,95706.0,0.3608]
[1739465470408,0.22145171,95713.0,95706.0,0.3608]
[1739465472107,0.22145171,95713.0,95701.0,0.01]
[1739465473009,0.34745171,95713.0,95701.0,0.01]
[1739465473204,0.20002421,95713.0,95701.0,0.01]
[1739465473403,0.2089516,95702.0,95701.0,0.01]
[1739465474106,0.20002421,95713.0,95701.0,0.01]
[1739465474107,0.2089358,95710.0,95701.0,0.01]
[1739465474303,0.20002421,95713.0,95704.0,0.2089462]
[1739465474503,0.2089392,95708.0,95704.0,0.2089462]
[1739465474907,0.20002421,95713.0,95704.0,0.2089462]
[1739465475102,0.2089298,95712.0,95706.0,0.2089421]
[1739465475510,0.2089435,95706.0,95701.0,0.019]
[1739465475703,0.20002421,95713.0,95701.0,0.019]
[1739465475908,0.2089505,95703.0,95701.0,0.019]
[1739465476303,0.2089505,95703.0,95701.0,0.016]
[1739465476808,0.2089505,95703.0,95701.0,0.014]
[1739465477003,0.2089505,95703.0,95701.0,0.019]
[1739465477004,0.22151035,95703.0,95701.0,0.019]
[1739465477505,0.22151035,95703.0,95701.0,0.01]
[1739465477706,0.22151035,95703.0,95701.0,0.022]
[1739465477902,0.2089516,95702.0,95701.0,0.022]
[1739465478105,0.2089625,95697.0,95696.0,0.00071674]
[1739465478313,0.2089625,95697.0,95696.0,0.00015674]
[1739465479001,0.01302984,95703.0,95696.0,0.00015674]
[1739465479307,0.2089487,95704.0,95701.0,0.002]
[1739465479510,0.2089487,95704.0,95702.0,0.2089508]
[1739465480106,0.1875,95713.0,95701.0,0.007]
[1739465480306,0.126,95713.0,95710.0,0.2089335]
[1739465480813,0.20893,95712.0,95710.0,0.2089335]
[1739465481003,0.20893,95712.0,95711.0,0.3608]
[1739465482306,0.126,95713.0,95710.0,0.003]
[1739465482307,0.208932,95711.0,95710.0,0.003]
[1739465483310,0.2089385,95708.0,95707.0,0.3608]
[1739465483616,0.126,95713.0,95703.0,0.01]
[1739465483617,0.2089472,95704.0,95703.0,0.01]
[1739465483806,0.126,95713.0,95695.0,0.425]
[1739465483807,0.2089625,95697.0,95695.0,0.425]
[1739465484006,0.2089625,95697.0,95695.0,0.36144]
[1739465484208,0.2089537,95702.0,95697.0,0.2089624]
[1739465484507,0.063,95710.0,95697.0,0.2089624]
[1739465484706,0.2089602,95699.0,95697.0,0.2089624]
[1739465485108,0.2089603,95698.0,95697.0,0.2089624]
[1739465485509,0.2089625,95697.0,95695.0,0.36144]
[1739465485805,0.2089625,95697.0,95695.0,0.00064]
[1739465486008,0.2089625,95697.0,95687.0,0.00156748]
[1739465486430,0.2089625,95697.0,95682.0,0.01]
[1739465487114,0.2090149,95673.0,95669.0,0.01]
[1739465487911,0.2089892,95685.0,95669.0,0.01]
[1739465488110,0.0622,95693.0,95688.0,0.2089817]
[1739465488307,0.208976,95691.0,95688.0,0.2089817]
[1739465488616,0.208976,95691.0,95690.0,0.01]
[1739465489915,0.208976,95691.0,95690.0,0.014]
[1739465490509,0.208976,95691.0,95690.0,0.012]
[1739465491417,0.208976,95691.0,95690.0,0.015]
[1739465491610,0.208976,95691.0,95690.0,0.005]
[1739465491919,0.208976,95691.0,95690.0,0.0036878]
[1739465492109,0.2089735,95692.0,95690.0,0.003]
[1739465492310,0.2089735,95692.0,95690.0,0.005]
[1739465492708,0.2089735,95692.0,95690.0,0.004]
[1739465493021,0.0622,95693.0,95666.0,0.01]
[1739465493022,0.209015,95673.0,95666.0,0.01]
[1739465493321,0.209015,95673.0,95659.0,0.3608]
[1739465493521,0.209015,95673.0,95662.0,0.01]
[1739465494215,0.2090215,95670.0,95659.0,0.3608]
[1739465495020,0.2090215,95670.0,95669.0,1e-08]
[1739465495021,0.22121494,95670.0,95669.0,1e-08]
[1739465495415,0.22121494,95670.0,95669.0,0.00700001]
[1739465495416,0.22221494,95670.0,95669.0,0.00700001]
[1739465496219,0.22421494,95670.0,95669.0,0.00700001]
[1739465496815,0.22321494,95670.0,95669.0,1e-08]
[1739465497027,0.22621494,95670.0,95669.0,1e-08]
[1739465509520,0.2110215,95670.0,95669.0,0.01100001]
[1739465509725,0.2090215,95670.0,95669.0,0.01200001]
[1739465510524,0.2090215,95670.0,95669.0,0.37280001]
[1739465510721,0.2090215,95670.0,95669.0,0.37180001]
[1739465511033,0.0119992,95674.0,95669.0,0.37180001]
[1739465511228,0.2090215,95670.0,95669.0,0.37180001]
[1739465511619,0.01210977,95674.0,95669.0,0.37180001]
[1739465511819,0.00015674,95679.0,95669.0,0.37180001]
[1739465512023,0.2090073,95677.0,95669.0,0.37080001]
[1739465512230,0.00015674,95679.0,95669.0,0.37080001]
[1739465512531,0.00015674,95679.0,95677.0,0.2090055]
[1739465512733,0.00015674,95679.0,95669.0,0.37244001]
[1739465513029,0.00015674,95679.0,95673.0,0.2090139]
[1739465513424,0.00015674,95679.0,95678.0,0.3608]
[1739465515430,0.00115674,95679.0,95678.0,0.3618]
[1739465516235,0.00015674,95679.0,95678.0,0.3628]
[1739465518030,0.00015674,95679.0,95678.0,0.3618]
[1739465518439,0.20915854,95679.0,95678.0,0.3608]
[1739465518632,0.20915854,95679.0,95678.0,0.3618]
[1739465519831,0.20915854,95679.0,95678.0,0.3658]
[1739465520037,0.20915854,95679.0,95678.0,0.3648]
[1739465520228,0.20915854,95679.0,95678.0,0.3658]
[1739465521325,0.20915854,95679.0,95678.0,0.3638]
[1739465522232,0.20915854,95679.0,95678.0,0.3658]
[1739465522735,0.20915854,95679.0,95678.0,0.005]
[1739465522937,0.20915854,95679.0,95678.0,0.3658]
[1739465523136,0.20915854,95679.0,95678.0,0.002]
[1739465523333,0.20915854,95679.0,95678.0,0.006]
[1739465523639,0.20915854,95679.0,95678.0,0.3668]
[1739465523946,0.20915854,95679.0,95678.0,0.002]
[1739465524136,0.20915854,95679.0,95678.0,0.004]
[1739465524330,0.20915854,95679.0,95678.0,0.005]
[1739465524331,0.00015674,95679.0,95678.0,0.005]
[1739465524532,0.00015674,95679.0,95678.0,0.2140039]
[1739465524933,0.125951,95700.0,95691.0,0.2189756]
[1739465525133,0.208971,95694.0,95693.0,0.3608]
[1739465526438,0.001,95694.0,95693.0,0.3608]
[1739465526637,0.022151,95700.0,95693.0,0.3608]
[1739465526838,0.00015674,95703.0,95699.0,0.3608]
[1739465527040,0.11248192,95705.0,95704.0,0.2089472]
[1739465527228,0.11248192,95705.0,95704.0,0.5697472]
[1739465528328,0.2089472,95704.0,95702.0,0.2189501]